bitfinex/quotes_ETHUSD_20240820
["timestamp","ask_amount","ask_price","bid_price","bid_amount"]
[1724176679528,3.84971,2597.6,2596.5,2.72549915]
[1724176679724,3.84971,2597.6,2596.6,20.02]
[1724176679992,3.84949,2597.8,2596.9,0.386]
[1724176680290,3.8503,2597.2,2597.1,0.386]
[1724176681245,3.8503,2597.2,2596.9,0.386]
[1724176681579,3.85015,2597.3,2596.9,0.386]
[1724176681752,3.85001,2597.4,2596.9,0.386]
[1724176682093,3.84977,2597.6,2596.9,0.386]
[1724176682368,3.84992,2597.5,2596.9,0.65085]
[1724176682741,3.84988,2597.5,2596.9,0.65085]
[1724176682941,3.84977,2597.6,2596.9,0.65085]
[1724176683275,3.85016,2597.3,2596.9,0.65085]
[1724176683471,3.85016,2597.3,2596.9,0.386]
[1724176683631,3.84999,2597.5,2596.9,0.386]
[1724176685373,3.84966,2597.7,2596.9,0.386]
[1724176685374,3.84971,2597.6,2596.9,0.386]
[1724176685669,3.84966,2597.7,2597.1,0.386]
[1724176685874,3.0,2597.6,2597.1,0.386]
[1724176686732,6.84971,2597.6,2597.1,0.386]
[1724176686951,3.0,2597.6,2597.1,0.386]
[1724176687152,3.84971,2597.6,2597.1,0.386]
[1724176687358,0.11746148,2597.5,2597.1,0.386]
[1724176687847,4.02506664,2597.5,2597.1,0.386]
[1724176688049,3.85003,2597.4,2596.9,0.386]
[1724176688278,3.96744614,2597.4,2596.9,2.59785]
[1724176689098,0.11741614,2597.4,2597.0,0.07700394]
[1724176689245,3.84946,2597.8,2597.2,0.386]
[1724176689440,0.11780076,2597.7,2597.2,0.7255]
[1724176690090,0.11780076,2597.7,2597.2,0.802498]
[1724176690406,3.96739076,2597.7,2597.2,0.7255]
[1724176690559,3.84986,2597.5,2597.2,0.7255]
[1724176690946,0.11775235,2597.4,2597.2,0.7255]
[1724176691243,3.96778235,2597.4,2597.0,0.386]
[1724176691444,3.85022,2597.3,2597.0,0.386]
[1724176691659,3.84958,2597.7,2597.0,0.386]
[1724176691660,7.81854136,2597.2,2597.0,0.386]
[1724176692089,3.85044,2597.1,2597.0,0.386]
[1724176692292,3.96814136,2597.2,2597.0,0.386]
[1724176692504,3.84985,2597.5,2597.0,0.386]
[1724176692505,0.11781571,2597.1,2597.0,0.386]
[1724176692725,3.85032,2597.2,2597.0,0.386]
[1724176692896,0.11781571,2597.1,2597.0,0.386]
[1724176693417,0.11781571,2597.1,2596.9,0.386]
[1724176693931,3.84987,2597.5,2596.9,0.386]
[1724176694114,0.11757099,2597.0,2596.9,0.386]
[1724176694308,3.84987,2597.5,2596.9,0.65152]
[1724176694514,0.11757099,2597.0,2596.9,0.65152]
[1724176695026,3.84987,2597.5,2596.9,0.65152]
[1724176695393,0.11775235,2597.4,2597.1,0.386]
[1724176695944,0.11770701,2597.3,2597.1,0.386]
[1724176696088,3.96785701,2597.3,2597.1,0.386]
[1724176696489,3.96785701,2597.3,2596.9,0.386]
[1724176697189,0.11770701,2597.3,2596.9,0.386]
[1724176697820,3.96791701,2597.3,2596.9,0.386]
[1724176698212,3.85052,2597.1,2596.9,0.386]
[1724176698741,6.18631,2597.6,2596.5,7.41]
[1724176698742,3.85081,2596.9,2596.6,0.386]
[1724176698888,3.85054,2597.1,2596.6,0.386]
[1724176699088,0.11754234,2596.8,2596.6,0.386]
[1724176699285,3.85076,2596.9,2596.6,0.386]
[1724176699548,0.11749698,2596.7,2596.6,0.386]
[1724176699764,0.11749698,2596.7,2596.4,19.47]
[1724176699765,3.85089,2596.8,2596.5,0.386]
[1724176700108,0.11749698,2596.7,2596.5,0.386]
[1724176700310,3.96859698,2596.7,2596.5,0.386]
[1724176700531,3.85119,2596.6,2596.5,0.386]
[1724176700749,3.85134,2596.5,2595.9,7.41]
[1724176700943,0.11745162,2596.6,2596.0,2.92495]
[1724176701154,0.11736089,2596.4,2596.0,2.92495]
[1724176701449,3.85108,2596.7,2596.0,2.92495]
[1724176701450,7.70223,2596.7,2596.0,2.92495]
[1724176701655,0.11725346,2596.3,2596.0,2.92495]
[1724176701836,0.11725346,2596.3,2596.1,1.033495]
[1724176702036,3.85108,2596.7,2596.2,0.55]
[1724176702361,0.11738957,2596.6,2596.3,2.3695]
[1724176702509,7.70169,2596.9,2596.3,2.3695]
[1724176702510,3.0,2596.8,2596.4,0.55]
[1724176702712,0.11730651,2596.5,2596.4,0.55]
[1724176702939,6.8509,2596.8,2596.4,0.55]
[1724176703147,0.11730651,2596.5,2596.4,0.55]
[1724176703341,3.85108,2596.7,2596.3,2.3695]
[1724176703565,6.8509,2596.8,2596.3,2.3695]
[1724176703566,0.11720345,2596.5,2596.3,2.3695]
[1724176703775,3.8512,2596.6,2596.1,1.033495]
[1724176703926,0.11715807,2596.4,2596.2,0.55]
[1724176704114,3.8512,2596.6,2596.2,0.55]
[1724176704311,0.1171127,2596.3,2596.2,0.55]
[1724176704560,3.8512,2596.6,2596.2,0.55]
[1724176704766,0.1171127,2596.3,2596.2,0.55]
[1724176704964,3.85136,2596.5,2596.2,0.55]
[1724176705260,0.1171127,2596.3,2596.2,0.55]
[1724176705729,3.85136,2596.5,2596.2,0.55]
[1724176705927,0.1171127,2596.3,2596.2,0.55]
[1724176706135,3.85149,2596.4,2596.2,0.55]
[1724176706332,0.1171127,2596.3,2596.2,0.55]
[1724176706866,0.1171127,2596.3,2596.1,1.033495]
[1724176707617,0.1171127,2596.3,2596.0,5.37175]
[1724176707825,3.9687727,2596.3,2596.1,0.55]
[1724176708173,0.1171127,2596.3,2595.7,2.25]
[1724176708366,0.1171127,2596.3,2596.0,0.55]
[1724176709795,3.85186,2596.2,2596.0,0.55]
[1724176709996,3.85186,2596.2,2595.9,7.41]
[1724176710204,0.11715939,2596.1,2595.9,7.41]
[1724176710598,3.85178,2596.2,2595.9,7.41]
[1724176710840,0.11711401,2596.0,2595.9,7.41]
[1724176710964,3.85178,2596.2,2595.9,7.96]
[1724176711161,3.85178,2596.2,2596.0,0.55]
[1724176711725,3.85164,2596.3,2596.0,0.55]
[1724176712021,3.85178,2596.2,2596.1,0.386]
[1724176712180,3.85178,2596.2,2596.0,0.38462809]
[1724176712389,3.85193,2596.1,2596.0,0.38462809]
[1724176712693,3.8518,2596.2,2596.0,0.38462809]
[1724176713215,3.8518,2596.2,2595.9,0.38325618]
[1724176713586,3.85169,2596.3,2595.9,0.38325618]
[1724176713764,3.85161,2596.4,2595.9,0.38325618]
[1724176713968,3.85161,2596.4,2596.1,0.38325618]
[1724176714567,7.70259,2596.6,2596.3,0.38325618]
[1724176715006,3.85135,2596.5,2596.3,0.38325618]
[1724176715379,6.32465,2596.5,2596.3,0.38325618]
[1724176715593,3.85178,2596.2,2596.1,0.386]
[1724176715772,3.0,2596.8,2595.7,2.25]
[1724176715773,3.85194,2596.1,2595.9,0.386]
[1724176716111,3.85208,2596.0,2595.9,0.386]
[1724176716463,3.96927381,2596.0,2595.9,0.386]
[1724176717093,7.82135381,2596.0,2595.9,0.386]
[1724176718015,7.82135381,2596.0,2595.7,0.386]
[1724176718016,3.85222,2595.9,2595.7,0.386]
[1724176718292,0.1170098,2595.9,2595.7,0.386]
[1724176718500,3.85237,2595.8,2595.7,0.386]
[1724176719012,0.11687415,2595.8,2595.7,0.386]
[1724176719711,3.85214,2596.0,2595.7,0.386]
[1724176719868,0.11673411,2595.8,2595.7,0.386]
[1724176720070,3.85184,2596.2,2595.7,0.386]
[1724176720371,0.11687027,2596.1,2595.9,0.386]
[1724176720712,3.96880027,2596.1,2595.9,0.386]
[1724176720915,3.85208,2596.0,2595.9,0.386]
[1724176721125,7.70416,2596.0,2595.9,0.386]
[1724176721274,3.85226,2595.9,2595.7,0.386]
[1724176721474,0.11673411,2595.8,2595.7,0.386]
[1724176722617,3.96910411,2595.8,2595.7,0.386]
[1724176727503,3.96910411,2595.8,2595.6,0.386]
[1724176727504,3.85252,2595.7,2595.6,0.386]
[1724176728059,3.9692879,2595.7,2595.6,0.386]
[1724176728763,3.9692879,2595.7,2595.5,0.386]
[1724176728967,3.85267,2595.6,2595.5,0.386]
[1724176729311,3.96939251,2595.6,2595.5,0.386]
[1724176730713,0.11672251,2595.6,2595.5,0.386]
[1724176730919,0.11672251,2595.6,2595.5,0.936]
[1724176731474,3.96939251,2595.6,2595.5,0.936]
[1724176732428,8.21894254,2595.6,2595.4,1.0]
[1724176732641,8.21894254,2595.6,2595.4,1.386]
[1724176732642,7.70564,2595.5,2595.4,1.386]
[1724176732949,7.82238817,2595.5,2595.4,1.386]
[1724176733149,8.37505279,2595.5,2595.4,1.386]
[1724176734032,19.15387279,2595.5,2595.4,1.0]
[1724176735477,18.60120817,2595.5,2593.8,2.2849]
[1724176735685,3.85503,2594.1,2593.9,0.386]
[1724176735983,0.11616198,2594.0,2593.9,0.386]
[1724176736314,6.85419,2594.6,2593.9,0.386]
[1724176736555,0.11571344,2594.0,2593.9,0.386]
[1724176736878,6.85425,2594.6,2593.9,0.386]
[1724176737053,0.11573344,2594.0,2593.9,0.386]
[1724176737384,0.11562346,2594.0,2593.9,2.6662]
[1724176737580,3.0,2594.9,2593.9,2.6662]
[1724176737876,3.85374,2594.9,2594.3,0.386]
[1724176738018,3.85374,2594.9,2594.5,0.386]
[1724176738334,3.85374,2594.9,2594.7,0.386]
[1724176738747,3.85343,2595.1,2594.8,0.936]
[1724176738953,6.85313,2595.3,2594.8,0.936]
[1724176739114,6.85313,2595.3,2594.8,0.55]
[1724176739115,3.85337,2595.2,2594.8,0.55]
[1724176739315,3.85341,2595.1,2594.8,0.386]
[1724176739558,3.85341,2595.1,2594.9,0.936]
[1724176739773,3.85313,2595.3,2594.9,0.386]
[1724176740071,3.85326,2595.2,2595.1,0.386]
[1724176740363,3.85326,2595.2,2595.1,0.936]
[1724176740711,3.85313,2595.3,2595.1,0.936]
[1724176740957,3.85313,2595.3,2595.2,0.55]
[1724176741463,7.70652,2595.2,2595.1,0.386]
[1724176741768,3.85326,2595.2,2595.1,0.386]
[1724176741935,3.85325,2595.3,2595.1,0.936]
[1724176742117,3.85283,2595.5,2595.2,0.936]
[1724176742619,3.85309,2595.4,2595.2,0.936]
[1724176742816,3.85283,2595.5,2595.2,0.936]
[1724176743016,4.25601628,2595.7,2595.2,0.936]
[1724176743330,3.85257,2595.7,2595.4,0.386]
[1724176743532,3.85257,2595.7,2595.3,2.3067]
[1724176743533,3.8523,2595.9,2595.5,0.936]
[1724176744261,3.8525,2595.8,2595.5,0.936]
[1724176745059,3.8523,2595.9,2595.5,0.936]
[1724176745289,3.85199,2596.1,2595.6,2.2541]
[1724176745501,3.85199,2596.1,2595.7,0.936]
[1724176745664,7.70404,2596.1,2595.7,0.936]
[1724176745990,3.85208,2596.0,2595.7,0.936]
[1724176747269,3.85186,2596.2,2595.7,0.936]
[1724176747479,3.85195,2596.1,2595.7,0.936]
[1724176747955,7.70397,2596.1,2595.7,0.936]
[1724176748342,7.70398,2596.1,2595.7,0.936]
[1724176748559,7.70402,2596.1,2595.7,0.936]
[1724176748756,3.85224,2595.9,2595.7,0.936]
[1724176749259,0.11666096,2595.8,2595.7,0.936]
[1724176749462,3.85195,2596.1,2595.7,1.287437]
[1724176749810,0.11675302,2596.0,2595.7,1.287437]
[1724176750016,0.11675302,2596.0,2595.9,0.386]
[1724176750176,3.85172,2596.3,2595.9,0.936]
[1724176750177,3.8518,2596.2,2595.9,0.936]
[1724176750384,3.85172,2596.3,2595.9,0.936]
[1724176750385,0.11659559,2596.0,2595.9,0.386]
[1724176750680,3.85172,2596.3,2595.9,0.936]
[1724176751014,3.85187,2596.2,2595.9,0.7440037]
[1724176751179,3.96856797,2596.2,2596.1,0.386]
[1724176751374,3.96856797,2596.2,2596.1,0.936]
[1724176751573,7.82041797,2596.2,2596.1,0.936]
[1724176752174,3.96854797,2596.2,2596.1,0.936]
[1724176753099,0.11669797,2596.2,2596.1,0.936]
[1724176753409,7.70322,2596.4,2596.1,0.936]
[1724176753620,3.85159,2596.4,2596.2,0.55]
[1724176753777,3.85157,2596.4,2596.2,0.55]
[1724176753984,3.85171,2596.3,2596.1,0.386]
[1724176754177,3.85171,2596.3,2596.2,0.55]
[1724176755262,3.85171,2596.3,2596.1,0.386]
[1724176755466,3.85171,2596.3,2596.2,0.55]
[1724176755982,7.70341,2596.3,2596.2,0.55]
[1724176756380,3.85208,2596.0,2595.9,0.386]
[1724176756589,3.85208,2596.0,2595.9,0.936]
[1724176756767,3.85193,2596.1,2595.9,0.936]
[1724176756966,3.85193,2596.1,2596.0,0.936]
[1724176758792,3.8517,2596.3,2596.0,0.936]
[1724176759985,3.85193,2596.1,2596.0,0.936]
[1724176760185,7.70386,2596.1,2596.0,0.936]
[1724176760576,3.85252,2595.7,2595.6,0.386]
[1724176761271,7.82161932,2595.7,2595.6,0.386]
[1724176761505,3.85282,2595.5,2595.4,19.856]
[1724176761707,3.96930206,2595.5,2595.3,0.386]
[1724176762071,0.11648206,2595.5,2595.3,0.386]
[1724176763024,0.11648206,2595.5,2595.4,0.936]
[1724176763484,3.85254,2595.7,2595.4,0.936]
[1724176763699,0.11650683,2595.6,2595.4,0.936]
[1724176764027,3.85225,2595.9,2595.4,0.936]
[1724176764189,0.11627533,2595.5,2595.4,0.936]
[1724176764391,0.11627533,2595.5,2595.4,1.27644]
[1724176764719,3.85208,2596.0,2595.6,0.386]
[1724176764899,3.85208,2596.0,2595.8,0.386]
[1724176765429,0.40338064,2596.3,2595.8,0.386]
[1724176765430,4.25504064,2596.3,2595.8,0.386]
[1724176765585,3.85178,2596.2,2596.1,2.2823]
[1724176765928,0.54365912,2597.0,2596.1,2.2823]
[1724176765929,3.85127,2596.6,2596.1,3.54013]
[1724176766084,7.70258,2596.6,2596.1,2.6683]
[1724176766283,3.85127,2596.6,2596.3,0.386]
[1724176766725,3.85127,2596.6,2596.4,0.55]
[1724176767632,3.85134,2596.5,2596.3,0.936]
[1724176769288,3.85134,2596.5,2596.3,1.25783]
[1724176769489,3.85107,2596.7,2596.5,0.386]
[1724176769830,3.85107,2596.7,2596.6,0.55]
[1724176771227,3.85107,2596.7,2596.1,0.386]
[1724176771427,3.85134,2596.5,2596.3,0.386]
[1724176771629,0.11737926,2596.6,2596.4,0.936]
[1724176771829,3.85107,2596.7,2596.4,0.386]
[1724176772134,3.8509,2596.8,2596.5,3.4322]
[1724176772498,3.85083,2596.9,2596.5,3.4322]
[1724176774600,3.85089,2596.8,2596.5,3.4322]
[1724176776661,3.85061,2597.0,2596.5,3.4322]
[1724176776831,6.85076,2596.9,2596.5,3.4322]
[1724176777365,3.0,2596.9,2596.5,3.4322]
[1724176777663,3.85061,2597.0,2596.5,3.77542]
[1724176777955,7.7013,2597.0,2596.5,3.77542]
[1724176778159,3.85061,2597.0,2596.5,3.77542]
[1724176779315,0.11778534,2596.9,2596.5,3.77542]
[1724176780031,0.11778534,2596.9,2596.5,3.4322]
[1724176780358,3.9687,2596.8,2596.5,3.4322]
[1724176781860,0.11774,2596.8,2596.5,3.4322]
[1724176782561,3.85105,2596.7,2596.5,3.4322]
[1724176782880,3.96870477,2596.7,2596.5,3.4322]
[1724176783675,3.96870477,2596.7,2596.5,0.936]
[1724176784539,0.11765477,2596.7,2596.5,0.936]
[1724176784858,3.85071,2597.0,2596.5,0.936]
[1724176785061,0.11759944,2596.6,2596.5,0.936]
[1724176785242,3.85096,2596.8,2596.5,0.936]
[1724176785428,0.11759944,2596.6,2596.5,0.936]
[1724176785616,3.85096,2596.8,2596.5,0.936]
[1724176785925,7.70195,2596.8,2596.5,0.936]
[1724176786129,0.11764479,2596.7,2596.5,0.936]
[1724176786342,3.85096,2596.8,2596.5,0.936]
[1724176786548,0.11759944,2596.6,2596.5,0.936]
[1724176786859,3.85096,2596.8,2596.5,0.936]
[1724176787060,0.11759944,2596.6,2596.5,0.936]
[1724176787257,3.85096,2596.8,2596.5,0.936]
[1724176787423,0.11759944,2596.6,2596.5,0.936]
[1724176787620,3.85096,2596.8,2596.5,0.936]
[1724176787845,0.11759944,2596.6,2596.5,0.936]
[1724176788348,0.05768516,2598.4,2596.5,4.862]
[1724176788669,0.05768516,2598.4,2596.7,0.386]
[1724176788670,3.84915,2598.0,2596.7,0.386]
[1724176788873,3.84915,2598.0,2597.1,0.386]
[1724176789018,0.10996469,2597.9,2597.3,0.386]
[1724176789218,3.84942,2597.8,2597.3,0.386]
[1724176789471,7.80885937,2597.8,2597.5,0.386]
[1724176789769,3.95933937,2597.8,2597.7,0.386]
[1724176790062,6.95933937,2597.8,2597.7,0.386]
[1724176790561,10.86642453,2597.8,2597.7,0.386]
[1724176791450,3.85007,2597.4,2597.0,0.386]
[1724176791649,3.85007,2597.4,2596.9,2.4599]
[1724176791650,3.85015,2597.3,2597.1,0.55]
[1724176791821,3.9600699,2597.3,2597.0,0.55]
[1724176792455,3.9600699,2597.3,2597.1,0.386]
[1724176793648,0.1099199,2597.3,2597.1,0.386]
[1724176794988,0.10979993,2597.2,2597.1,0.386]
[1724176795151,3.0,2597.6,2597.1,0.936]
[1724176795333,10.69951,2597.6,2597.3,0.386]
[1724176795775,3.84988,2597.5,2597.3,0.386]
[1724176795977,3.95981594,2597.5,2597.3,0.386]
[1724176796470,3.95981594,2597.5,2597.1,0.386]
[1724176796672,3.95981594,2597.5,2597.3,0.386]
[1724176797029,3.85,2597.4,2597.3,0.386]
[1724176797255,3.95987066,2597.4,2597.3,0.936]
[1724176798326,3.8502,2597.3,2597.0,0.386]
[1724176798552,3.96017166,2597.2,2597.0,0.386]
[1724176798866,3.96017166,2597.2,2597.1,0.936]
[1724176799424,7.81054166,2597.2,2597.1,0.386]
[1724176799632,3.85051,2597.1,2596.7,0.386]
[1724176799930,3.0,2597.6,2596.7,0.67432]
[1724176799931,0.1097646,2597.0,2596.7,0.67432]
[1724176800451,0.1097646,2597.0,2596.9,0.386]
[1724176800926,0.1097646,2597.0,2596.9,0.936]
[1724176801356,0.1097646,2597.0,2596.5,0.386]
[1724176801357,3.85085,2596.9,2596.5,0.386]
[1724176801617,3.85089,2596.8,2596.5,0.386]
[1724176802259,3.85074,2596.9,2596.5,0.386]
[1724176802454,7.75924516,2596.9,2596.5,0.386]
[1724176802656,0.05768516,2596.8,2596.5,0.386]
[1724176802912,0.05768516,2596.8,2595.7,5.0]
[1724176802913,3.85103,2596.8,2596.0,0.386]
[1724176803115,3.85103,2596.8,2596.0,0.66899]
[1724176803116,3.85156,2596.4,2596.0,0.66899]
[1724176803404,3.85131,2596.6,2596.0,0.386]
[1724176803914,0.1097646,2597.0,2596.0,0.386]
[1724176804060,0.05768516,2596.9,2596.0,0.386]
[1724176804261,3.90842516,2596.9,2596.0,0.386]
[1724176804463,3.8512,2596.6,2596.0,0.386]
[1724176804700,3.0,2596.8,2596.2,0.386]
[1724176804899,3.0,2596.8,2595.3,3.926]
[1724176804900,3.0,2596.8,2596.4,0.386]
[1724176805104,3.9603746,2597.0,2596.6,0.386]
[1724176805320,3.9603746,2597.0,2596.3,2.8538]
[1724176805321,0.1097646,2597.0,2596.8,0.386]
[1724176805473,0.1097646,2597.0,2596.8,0.65498]
[1724176805677,0.1097646,2597.0,2596.9,0.936]
[1724176806907,3.9603546,2597.0,2596.8,0.386]
[1724176807986,3.85074,2596.9,2596.2,0.386]
[1724176808175,3.8509,2596.8,2596.4,0.386]
[1724176808387,3.8509,2596.8,2596.6,0.386]
[1724176808582,3.8509,2596.8,2596.7,0.936]
[1724176808785,3.8509,2596.8,2596.5,0.55]
[1724176808786,0.05768516,2596.9,2596.5,0.386]
[1724176809109,3.85119,2596.6,2596.5,0.386]
[1724176809603,3.85119,2596.6,2596.1,2.4036]
[1724176809604,3.85119,2596.6,2596.2,0.386]
[1724176809806,3.85119,2596.6,2596.2,0.66496]
[1724176810307,3.85134,2596.5,2596.2,0.66496]
[1724176810889,3.85134,2596.5,2596.4,0.386]
[1724176811215,3.85114,2596.7,2596.4,0.936]
[1724176811369,3.85114,2596.7,2596.5,0.936]
[1724176811571,3.85114,2596.7,2596.5,0.386]
[1724176812413,3.85114,2596.7,2596.4,0.386]
[1724176812568,3.85114,2596.7,2596.5,0.936]
[1724176812769,3.9604646,2597.0,2596.5,0.386]
[1724176812973,3.85083,2596.9,2596.5,0.386]
[1724176813211,3.85091,2596.8,2596.5,0.386]
[1724176813379,3.85082,2596.9,2596.6,0.55]
[1724176813904,3.85082,2596.9,2596.2,0.27896]
[1724176813905,3.85082,2596.9,2596.5,0.386]
[1724176814108,0.1097646,2597.0,2596.6,3.3564]
[1724176814312,0.1097646,2597.0,2596.8,0.386]
[1724176814679,0.1097646,2597.0,2596.5,0.07701359]
[1724176814864,0.1097646,2597.0,2596.5,0.46301359]
[1724176815072,0.1097646,2597.0,2596.5,0.386]
[1724176815408,0.1097646,2597.0,2596.7,0.386]
[1724176815910,3.9604346,2597.0,2596.7,0.386]
[1724176816319,3.85089,2596.8,2596.5,0.386]
[1724176816528,3.851,2596.8,2596.5,0.386]
[1724176816832,7.70238,2596.6,2596.5,0.386]
[1724176817186,3.85177,2596.3,2595.9,0.386]
[1724176817401,3.85177,2596.3,2596.0,0.386]
[1724176817402,3.85201,2596.1,2596.0,0.386]
[1724176817592,7.70402,2596.1,2596.0,0.386]
[1724176817786,3.85253,2595.7,2595.2,2.4827]
[1724176818296,0.10918886,2595.6,2594.9,2.6911]
[1724176818680,3.8533,2595.2,2594.9,0.386]
[1724176818911,3.8533,2595.2,2595.0,0.386]
[1724176818912,3.85334,2595.2,2595.0,0.386]
[1724176819111,0.16644076,2595.1,2595.0,0.386]
[1724176819315,0.1087556,2595.1,2595.0,0.386]
[1724176819734,3.9621656,2595.1,2595.0,0.386]
[1724176819939,0.1087556,2595.1,2594.4,0.386]
[1724176820233,3.85326,2595.2,2594.4,0.386]
[1724176820391,0.10871018,2595.0,2594.4,0.386]
[1724176820590,0.1087556,2595.1,2594.4,0.386]
[1724176820792,0.10866476,2594.9,2594.3,0.386]
[1724176821031,0.10871018,2595.0,2594.5,0.386]
[1724176821230,0.10861934,2594.8,2594.5,0.386]
[1724176821413,0.10866476,2594.9,2594.5,0.386]
[1724176821603,3.81183392,2595.2,2594.5,0.386]
[1724176821787,0.10500021,2594.8,2594.5,0.386]
[1724176822131,7.70613,2595.4,2594.7,0.386]
[1724176822327,3.85303,2595.4,2594.7,0.386]
[1724176822627,3.85303,2595.4,2594.9,0.386]
[1724176823432,3.85283,2595.5,2594.9,0.386]
[1724176823628,3.85283,2595.5,2594.9,2.8223]
[1724176823835,3.85277,2595.6,2594.9,3.15953]
[1724176824014,3.85306,2595.4,2594.9,3.15953]
[1724176824214,3.85306,2595.4,2594.9,0.386]
[1724176824215,3.85305,2595.4,2594.9,0.386]
[1724176825304,3.85304,2595.4,2594.9,0.386]
[1724176825859,7.70612,2595.4,2594.9,0.386]
[1724176826431,7.70612,2595.4,2594.9,0.38495908]
[1724176826655,3.85304,2595.4,2594.9,0.38495908]
[1724176826790,7.70609,2595.4,2594.9,0.38495908]
[1724176827232,3.85304,2595.4,2594.9,0.38495908]
[1724176827612,3.85316,2595.3,2594.9,0.38495908]
[1724176827809,3.85334,2595.2,2594.9,0.38495908]
[1724176828127,3.85312,2595.3,2594.7,0.38391816]
[1724176828287,3.85312,2595.3,2594.9,0.38391816]
[1724176828727,3.85327,2595.2,2594.9,0.38391816]
[1724176829039,3.91117516,2595.1,2594.9,0.38391816]
[1724176829344,3.85356,2595.0,2594.9,0.38391816]
[1724176829492,3.9583604,2595.0,2594.9,0.38391816]
[1724176830716,0.1048004,2595.0,2594.9,0.38391816]
[1724176831404,0.1048004,2595.0,2594.7,0.38391816]
[1724176832792,3.85328,2595.2,2594.7,0.38391816]
[1724176832992,0.10475477,2594.9,2594.7,0.38391816]
[1724176833199,3.85312,2595.3,2594.7,0.38391816]
[1724176833459,0.10470935,2594.8,2594.7,0.38391816]
[1724176833738,3.85301,2595.4,2594.7,0.93391816]
[1724176833896,0.10456962,2594.8,2594.7,0.93391816]
[1724176834097,6.85305,2595.4,2594.7,3.22425721]
[1724176834334,0.1044299,2594.8,2594.7,3.22425721]
[1724176834540,3.85313,2595.3,2594.7,3.22425721]
[1724176834740,0.1044299,2594.8,2594.7,3.22425721]
[1724176834942,3.85313,2595.3,2594.7,3.22425721]
[1724176835151,0.1044299,2594.8,2594.7,3.22425721]
[1724176835442,3.85313,2595.3,2594.7,3.22425721]
[1724176835598,0.10184321,2594.8,2594.7,0.93391816]
[1724176835801,3.85334,2595.2,2594.7,0.93391816]
[1724176836031,0.10184321,2594.8,2594.7,0.93391816]
[1724176836237,3.8536,2595.0,2594.7,0.38391816]
[1724176836464,0.10184321,2594.8,2594.6,0.38391816]
[1724176836748,3.8536,2595.0,2594.6,0.38391816]
[1724176836952,0.10179778,2594.7,2594.6,0.38391816]
[1724176837107,3.8535,2595.1,2594.6,0.38391816]
[1724176837506,0.10090854,2595.0,2594.4,0.38391816]
[1724176837718,0.10090854,2595.0,2594.6,0.38391816]
[1724176839027,3.85342,2595.1,2594.6,0.38391816]
[1724176839236,0.10085013,2594.9,2594.6,0.38391816]
[1724176839509,0.1008047,2594.8,2594.6,0.38391816]
[1724176839712,3.8536,2595.0,2594.6,0.38391816]
[1724176839967,0.10083911,2594.7,2594.6,0.38391816]
[1724176840112,3.8536,2595.0,2594.6,0.38391816]
[1724176840312,0.10083911,2594.7,2594.6,0.38391816]
[1724176840526,3.8536,2595.0,2594.6,0.38391816]
[1724176840758,0.10083911,2594.7,2594.6,0.38391816]
[1724176841070,3.8536,2595.0,2594.6,0.38391816]
[1724176841216,0.10083911,2594.7,2594.6,0.38391816]
[1724176841415,3.8536,2595.0,2594.6,0.38391816]
[1724176841610,0.10083911,2594.7,2594.6,0.38391816]
[1724176841810,7.70724,2595.0,2594.6,0.38391816]
[1724176842016,0.10083911,2594.7,2594.6,0.38391816]
[1724176842418,3.8536,2595.0,2594.6,0.38391816]
[1724176842731,0.10092997,2594.9,2594.6,0.38391816]
[1724176843045,0.10092997,2594.9,2594.4,0.38391816]
[1724176843863,0.10092997,2594.9,2594.6,0.38391816]
[1724176844014,0.10092997,2594.9,2594.8,0.38391816]
[1724176844215,6.85299,2595.4,2594.8,0.38391816]
[1724176844415,0.10097002,2594.9,2594.8,0.38391816]
[1724176844662,6.85299,2595.4,2594.8,1.22074998]
[1724176844844,0.10086672,2594.9,2594.8,0.38391816]
[1724176845067,0.10086672,2594.9,2594.8,0.93391816]
[1724176845342,0.10079042,2594.9,2594.8,0.93391816]
[1724176845554,3.8533,2595.2,2594.8,0.93391816]
[1724176845709,0.09830602,2594.9,2594.8,0.93391816]
[1724176845913,3.8533,2595.2,2594.8,0.93391816]
[1724176846160,0.09831128,2594.9,2594.8,0.93391816]
[1724176846573,4.25607491,2595.7,2594.8,1.3528222]
[1724176846777,3.85253,2595.7,2595.0,0.38391816]
[1724176846979,3.85282,2595.5,2595.0,0.38391816]
[1724176847178,3.85282,2595.5,2595.2,0.38391816]
[1724176847179,7.70574,2595.5,2595.2,0.38391816]
[1724176847359,3.85282,2595.5,2595.2,0.38391816]
[1724176847587,3.85305,2595.4,2595.2,0.38391816]
[1724176848090,3.85305,2595.4,2595.0,0.38391816]
[1724176849093,3.85331,2595.2,2595.1,0.38391816]
[1724176849467,3.85288,2595.5,2595.1,0.38391816]
[1724176849779,7.7058,2595.5,2595.1,0.38391816]
[1724176849979,3.85297,2595.4,2595.1,0.38391816]
[1724176850286,3.85297,2595.4,2594.8,0.55]
[1724176850287,3.85297,2595.4,2595.2,0.38391816]
[1724176850448,3.85297,2595.4,2594.8,0.55]
[1724176850629,3.85297,2595.4,2594.9,0.386]
[1724176850630,3.85312,2595.3,2594.9,0.386]
[1724176851959,7.70636,2595.3,2594.9,0.386]